[Event "55th Biel Festival MTO 2022"]
[Site "Biel"]
[Date "2022.07.19"]
[Round "6.13"]
[White "Licznerski Lukasz"]
[Black "Shevchenko Kirill"]
[Result "1/2-1/2"]
[ECO "B83"]
[WhiteElo "2451"]
[BlackElo "2654"]
[Annotator "TA"]
[PlyCount "65"]
[EventDate "2022.07.13"]
[EventType "swiss"]
[EventCountry "SUI"]
[SourceTitle "playchess.com"]
[Source "ChessBase"]
[SourceQuality "1"]
[TimeControl "40/5400+30:1800+30"]

{[%evp 24,65,11,-25,-23,-30,-23,-41,-31,-39,-23,-20,-16,-34,-34,-34,-34,-34,-39,-38,-14,-14,0,0,0,0,0,0,0,0,0,0,0,0,0,0,0,0,0,0,0,0,12,12]} 1. e4 {[%emt 0:00:56]} c5 {[%emt 0:00:05]} 2. Nf3 {[%emt 0:00:22]} Nc6 {[%emt 0:00:05]} 3. Nc3 {[%emt 0:00:50]} d6 {[%emt 0:00:13]} 4. d4 {[%emt 0:00:25]} cxd4 {[%emt 0:00:05]} 5. Nxd4 {[%emt 0:00:06]} Nf6 {[%emt 0:00:04]} 6. Be2 {[%emt 0:00:20]} e6 {[%emt 0:01:48]} 7. Be3 {[%emt 0:00:49]} Be7 {[%emt 0:00:19]} 8. O-O {[%emt 0:00:09]} O-O {[%emt 0:01:15]} 9. f4 {[%emt 0:00:35]} Bd7 {[%emt 0:02:25]} 10. Qe1 {[%emt 0:02:46]} Nxd4 {[%emt 0:02:48]} 11. Bxd4 {[%emt 0:00:19]} Bc6 {[%emt 0:00:02]} 12. Qg3 {[%emt 0:00:12]} g6 {[%emt 0:02:05]} 13. Bf3 {[%emt 0:15:41]} b5 {[%emt 0:02:09] B83: Sicilian Scheveningen: 6 Be2, lines without ...a6.} 14. a3 {[%emt 0:23:47]} a5 $1 {[%emt 0:02:05]} 15. b4 {[%emt 0:01:26]} axb4 {[%emt 0:31:39] Black is slightly better.} (15... d5 {looks sharper.} 16. exd5 Nxd5 17. Nxd5 Bxd5 18. c3 axb4 19. axb4 Rxa1 20. Rxa1 Bxb4 21. Rb1 Be7) 16. axb4 {[%emt 0:00:35]} Rxa1 {[%emt 0:00:08]} 17. Rxa1 {[%emt 0:00:07]} d5 {[%emt 0:00:01] [#]} 18. e5 $146 {[%emt 0:20:47]} ({Predecessor:} 18. exd5 Nxd5 19. Bxd5 Bxd5 20. Qe3 Bxb4 21. Nxb5 Be7 22. Qe5 f6 23. Qe3 Qd7 24. Nc3 {½-½ (54) Khatanbaatar,B (2433)-Grigoryan,K (2411) Turin 2006}) 18... Ne4 {[%emt 0:01:36]} 19. Bxe4 {[%emt 0:00:07]} dxe4 {[%emt 0:00:08]} 20. Qe3 {[%emt 0:00:08]} Bxb4 {[%emt 0:20:20]} 21. Nxe4 {[%emt 0:00:09]} Be7 {[%emt 0:05:21] [#] ...Qd5 is the strong threat. A strong pair of Bishops.} 22. Ra7 {[%emt 0:05:58] The position is equal.} b4 {[%emt 0:02:49]} 23. h3 {[%emt 0:07:43]} h5 {[%emt 0:03:02]} 24. Kh2 {[%emt 0:06:45]} Qd5 {[%emt 0:13:59]} 25. Rxe7 {[%emt 0:01:04] [#] Threatening mate with Nf6+.} Qxe4 {[%emt 0:00:03]} 26. Qxe4 {[%emt 0:00:16]} Bxe4 $11 {[%emt 0:00:02][%mdl 4096] Endgame KRB-KRB} 27. Rc7 {[%emt 0:00:23] Against Rc8} Rb8 {[%emt 0:01:42]} 28. Ba7 {[%emt 0:04:04]} b3 {[%emt 0:04:04]} 29. cxb3 {[%emt 0:01:27]} (29. Bxb8 $2 {is the wrong capture.} b2 30. Rc8+ Kh7 $19) 29... Rxb3 {[%emt 0:00:02]} 30. Rc4 {[%emt 0:00:54]} Bd5 {[%emt 0:02:56]} 31. Rc2 {[%emt 0:00:23]} Rb4 {[%emt 0:01:13]} 32. Kg3 {[%emt 0:03:16]} Kg7 {[%emt 0:00:01]} 33. Bc5 {[%emt 0:00:40] Weighted Error Value: White=0.04 (flawless) /Black=0.04 (flawless)} 1/2-1/2

[Event "55th Biel Festival MTO 2022"]
[Site "Biel"]
[Date "2022.07.19"]
[Round "6.14"]
[White "Katz, Alexander"]
[Black "Martirosyan Haik M."]
[Result "0-1"]
[ECO "B80"]
[WhiteElo "2402"]
[BlackElo "2672"]
[Annotator "TA"]
[PlyCount "66"]
[EventDate "2022.07.13"]
[EventType "swiss"]
[EventCountry "SUI"]
[SourceTitle "playchess.com"]
[Source "ChessBase"]
[SourceQuality "1"]
[TimeControl "40/5400+30:1800+30"]

{[%evp 21,66,45,42,39,51,0,0,0,0,0,12,15,28,0,0,0,65,63,67,-33,-12,-11,-22,-32,-40,-52,-47,-36,-41,-381,-385,-352,-188,-241,-248,-201,-121,-119,-107,-237,-241,-241,-229,-229,-227,-253,-255]} 1. e4 {[%emt 0:00:04]} c5 {[%emt 0:00:11]} 2. Nf3 {[%emt 0:00:06]} Nc6 {[%emt 0:00:09]} 3. d4 {[%emt 0:00:05]} cxd4 {[%emt 0:00:09]} 4. Nxd4 {[%emt 0:00:03]} e6 {[%emt 0:00:18]} 5. Nc3 {[%emt 0:01:52]} Qc7 {[%emt 0:00:28]} 6. g3 {[%emt 0:02:21]} a6 {[%emt 0:00:48]} 7. Bg2 {[%emt 0:00:15]} d6 {[%emt 0:01:05]} 8. O-O {[%emt 0:00:55]} Nf6 {[%emt 0:00:46]} 9. Nce2 {[%emt 0:05:13]} Bd7 {[%emt 0:02:06]} 10. b3 {[%emt 0:04:44]} Be7 {[%emt 0:02:22]} 11. c4 {[%emt 0:00:56]} O-O {[%emt 0:00:51]} 12. Bb2 {[%emt 0:00:47] B80: Sicilian Scheveningen: 6 g3 and 6 Be3, including English Attack.} Nxd4 $5 {[%emt 0:02:49][%mdl 4] Exploring less charted territory.} 13. Qxd4 {[%emt 0:02:45]} ({White should play} 13. Nxd4 $14 Rfc8 14. Rc1) 13... e5 $11 {[%emt 0:03:53]} 14. Qd2 {[%emt 0:02:54] The position is equal.} b5 {[%emt 0:00:19] [#]} 15. Rac1 $146 {[%emt 0:06:03]} ({Predecessor:} 15. Rfc1 Qb8 16. Nc3 bxc4 17. bxc4 Qb4 18. Rc2 Rfc8 19. Nd5 Nxd5 20. cxd5 Qxd2 21. Rxd2 {0-1 (54) Grbovic,V (2215)-Barlov,D (2410) Pula 1984}) 15... bxc4 {[%emt 0:02:58]} 16. Rxc4 {[%emt 0:00:06]} Qb6 {[%emt 0:00:50]} 17. Rfc1 {[%emt 0:03:11]} Ng4 {[%emt 0:03:42]} 18. Nc3 {[%emt 0:19:23]} Be6 {[%emt 0:12:32]} (18... Bg5 $11 19. Nd5 Bxd2 20. Nxb6 Bxc1 21. Rxc1 Rad8) 19. Na4 $1 $14 {[%emt 0:06:33]} (19. Nd5 Bxd5 20. exd5 Bg5 $1 $15) 19... Qd8 {[%emt 0:00:12]} 20. Rc7 {[%emt 0:01:26]} (20. R4c3 $1 $14) 20... Bg5 $1 $15 {[%emt 0:03:43]} 21. f4 {[%emt 0:02:14]} Bh6 {[%emt 0:00:41]} 22. h3 {[%emt 0:05:13]} Nf6 {[%emt 0:01:53] ...exf4 is the strong threat.} 23. R7c6 {[%emt 0:01:18]} exf4 {[%emt 0:03:32] Hoping for ...f3.} 24. Rxd6 {[%emt 0:01:44]} Qe7 {[%emt 0:00:56]} 25. e5 $2 {[%emt 0:03:24][%mdl 8192]} (25. gxf4 $15 Nh5 26. Rf1 (26. Be5 f6 $17)) 25... f3 $19 {[%emt 0:02:43]} 26. Qd3 {[%emt 0:16:33]} ({Much worse is} 26. exf6 Qa7+ 27. Bd4 (27. Qf2 $2 Be3 $19) 27... Bxd2 $19) 26... Ne8 {[%emt 0:07:20] Chess con chili.} ({Not} 26... fxg2 27. exf6 gxf6 28. Re1 $17) (26... Bxc1 $142 27. exf6 {[#]} gxf6 $1 28. Bxc1 fxg2 29. Kxg2 Rfd8) 27. Bxf3 {[%emt 0:02:54][%cal Oc1d1]} Bxc1 {[%emt 0:00:40]} ({Weaker is} 27... Nxd6 28. exd6 Qg5 29. Kg2 $15) 28. Bxc1 {[%emt 0:00:17]} Bf5 {[%emt 0:04:15]} 29. Qxf5 {[%emt 0:01:29]} Nxd6 {[%emt 0:00:10]} 30. Qg5 {[%emt 0:02:21]} (30. exd6 $17 {was forced.} Qe1+ 31. Kg2 Qxc1 32. Bxa8 Rxa8 33. d7) 30... Qxg5 {[%emt 0:03:16]} 31. Bxg5 {[%emt 0:00:01] This bishop pair is nice.} Nf5 {[%emt 0:00:28] Threatens to win with ...Rac8.} 32. Bxa8 {[%emt 0:00:21]} Rxa8 {[%emt 0:00:05]} 33. Bf4 {[%emt 0:03:00]} Rc8 {[%emt 0:01:11] Weighted Error Value: White=0.50/Black=0.17 (very precise)} 0-1

[Event "55th Biel Festival MTO 2022"]
[Site "Biel"]
[Date "2022.07.19"]
[Round "6.15"]
[White "Azarov Sergei"]
[Black "Stijve, Theo"]
[Result "1/2-1/2"]
[ECO "B50"]
[WhiteElo "2566"]
[BlackElo "2394"]
[Annotator "TA"]
[PlyCount "65"]
[EventDate "2022.07.13"]
[EventType "swiss"]
[EventCountry "SUI"]
[SourceTitle "playchess.com"]
[Source "ChessBase"]
[SourceQuality "1"]
[TimeControl "40/5400+30:1800+30"]

{[%evp 23,65,7,9,4,12,0,0,0,0,0,0,0,0,0,0,0,0,0,0,-6,0,-11,-9,-8,-8,-10,-8,-11,-10,-24,-21,-23,0,0,0,0,0,0,0,0,0,0,0,0]} 1. e4 {[%emt 0:00:05]} c5 {[%emt 0:00:08]} 2. Nf3 {[%emt 0:00:13]} d6 {[%emt 0:00:06]} 3. c3 {[%emt 0:00:26]} Nf6 {[%emt 0:00:30]} 4. Bd3 {[%emt 0:01:08]} Nc6 {[%emt 0:03:02]} 5. h3 {[%emt 0:00:43]} g6 {[%emt 0:01:16]} 6. O-O {[%emt 0:03:36]} Bg7 {[%emt 0:00:20]} 7. Bc2 {[%emt 0:01:45]} e5 {[%emt 0:04:06]} 8. d4 {[%emt 0:24:45]} cxd4 {[%emt 0:01:53]} 9. cxd4 {[%emt 0:00:12]} exd4 {[%emt 0:05:46]} 10. Nxd4 {[%emt 0:00:34]} O-O {[%emt 0:01:11]} 11. Nxc6 {[%emt 0:01:47]} bxc6 {[%emt 0:00:09]} 12. Nc3 {[%emt 0:00:10]} d5 {[%emt 0:06:26]} 13. Bg5 {[%emt 0:15:54] [#] Threatens to win with e5. B50: Sicilian: 2...d6, Miscellaneous.} h6 {[%emt 0:17:03]} 14. Be3 {[%emt 0:00:56]} Re8 {[%emt 0:09:25]} 15. Ba4 {[%emt 0:11:23]} Bd7 {[%emt 0:16:57]} 16. exd5 {[%emt 0:03:40]} Nxd5 {[%emt 0:00:18]} 17. Nxd5 {[%emt 0:07:31]} cxd5 {[%emt 0:01:58]} 18. Bxd7 {[%emt 0:00:12]} Qxd7 {[%emt 0:00:32] [#]} 19. Bd4 $146 {[%emt 0:00:09]} ({Predecessor:} 19. Qd2 Qb5 20. Rab1 h5 21. Rfd1 d4 22. Bh6 Re2 23. Qg5 Qxg5 24. Bxg5 Rc8 25. Rbc1 Rxc1 26. Bxc1 {½-½ (33) Rogulj,B (2425)-Berebora,F (2390) Split 1997}) 19... Re4 {[%emt 0:04:55]} 20. Bxg7 {[%emt 0:00:09]} Kxg7 {[%emt 0:00:05]} 21. Qd3 {[%emt 0:00:24]} Qe6 {[%emt 0:02:37]} 22. Rad1 {[%emt 0:01:00]} Rd8 {[%emt 0:02:45]} 23. Rd2 {[%emt 0:01:31]} d4 {[%emt 0:02:39]} 24. b4 {[%emt 0:03:33]} h5 {[%emt 0:02:40]} 25. a4 {[%emt 0:00:53]} Rc8 {[%emt 0:03:15]} 26. Rc2 {[%emt 0:02:03] Against Rc4} Rxc2 {[%emt 0:03:04]} 27. Qxc2 $11 {[%emt 0:00:05][%mdl 4096] Endgame KQR-KQR} Re1 {[%emt 0:00:21]} (27... Re2 $5 {[%cal Re2c2]} 28. Qd3 Qe5 $15) 28. Qd3 {[%emt 0:03:40] The position is equal.} Rxf1+ {[%emt 0:05:05]} 29. Kxf1 {[%emt 0:00:06]} Qd6 {[%emt 0:00:08]} 30. b5 {[%emt 0:01:27]} Qb4 {[%emt 0:00:35]} 31. a5 {[%emt 0:00:40]} Qxa5 {[%emt 0:00:30]} 32. Qxd4+ {[%emt 0:00:06]} Kg8 {[%emt 0:00:23]} 33. Kg1 {[%emt 0:03:27] An uneventful encounter.  Weighted Error Value: White=0.02 (flawless) /Black=0.02 (flawless)} 1/2-1/2

[Event "55th Biel Festival MTO 2022"]
[Site "Biel"]
[Date "2022.07.19"]
[Round "6.16"]
[White "Rathanvel V S"]
[Black "Unuk, Laura"]
[Result "1/2-1/2"]
[ECO "C54"]
[WhiteElo "2478"]
[BlackElo "2340"]
[Annotator "TA"]
[PlyCount "39"]
[EventDate "2022.07.13"]
[EventType "swiss"]
[EventCountry "SUI"]
[SourceTitle "playchess.com"]
[Source "ChessBase"]
[SourceQuality "1"]
[TimeControl "40/5400+30:1800+30"]

{[%evp 9,39,17,14,18,18,16,17,17,11,12,25,0,0,0,0,0,0,0,0,0,0,-13,-18,-19,-20,-17,-32,-14,-23,-29,-6,-8]} 1. e4 {[%emt 0:00:04]} e5 {[%emt 0:00:14]} 2. Nf3 {[%emt 0:00:37]} Nc6 {[%emt 0:00:32]} 3. Bc4 {[%emt 0:04:00]} Bc5 {[%emt 0:02:02]} 4. c3 {[%emt 0:00:11]} Nf6 {[%emt 0:02:47]} 5. d3 {[%emt 0:00:55]} a5 {[%emt 0:03:22]} 6. O-O {[%emt 0:03:20] C54: Giuoco Piano: 4 c3 Nf6, main lines with 5 d4 and 5 d3.} d6 {[%emt 0:01:44]} 7. a4 {[%emt 0:14:34]} h6 {[%emt 0:05:57]} 8. Re1 {[%emt 0:17:13]} O-O {[%emt 0:00:52]} 9. h3 {[%emt 0:01:09]} Bb6 {[%emt 0:08:30]} 10. Be3 {[%emt 0:04:57]} Bxe3 {[%emt 0:00:30]} 11. Rxe3 {[%emt 0:00:07] [#]} d5 $146 {[%emt 0:04:25]} ({Predecessor:} 11... Ne7 12. Nbd2 Ng6 13. d4 Qe7 14. Bf1 Be6 15. Qc2 Rfd8 16. Ree1 c6 17. Rad1 Qc7 {0-1 (55) Swiercz,D (2656)-Oparin,G (2681) Chess.com INT 2022}) 12. exd5 {[%emt 0:02:28]} Nxd5 {[%emt 0:03:51]} 13. Bxd5 {[%emt 0:05:46]} Qxd5 {[%emt 0:00:07]} 14. Na3 {[%emt 0:00:09]} Bf5 {[%emt 0:25:56]} 15. c4 {[%emt 0:17:10]} Qc5 {[%emt 0:02:44]} 16. Nxe5 {[%emt 0:01:31]} Rae8 {[%emt 0:05:35]} ({Don't play} 16... Nxe5 17. d4 Qb4 18. Rxe5 $16) 17. Nb5 {[%emt 0:14:52] d4 is the strong threat.} Rxe5 {[%emt 0:08:06]} 18. d4 {[%emt 0:00:04] [#]} Nxd4 {[%emt 0:00:10]} 19. Rxe5 {[%emt 0:00:03]} Qxe5 {[%emt 0:00:09]} 20. Qxd4 {[%emt 0:00:05] An interesting draw.  Weighted Error Value: White=0.03 (flawless) /Black=0.01 (flawless)} 1/2-1/2

[Event "55th Biel Festival MTO 2022"]
[Site "Biel"]
[Date "2022.07.19"]
[Round "6.17"]
[White "Ajay Krishna, S."]
[Black "Pavlovic Milos"]
[Result "1/2-1/2"]
[ECO "B08"]
[WhiteElo "2372"]
[BlackElo "2461"]
[Annotator "TA"]
[PlyCount "95"]
[EventDate "2022.07.13"]
[EventType "swiss"]
[EventCountry "SUI"]
[SourceTitle "playchess.com"]
[Source "ChessBase"]
[SourceQuality "1"]
[TimeControl "40/5400+30:1800+30"]

{[%evp 21,95,45,56,13,34,29,48,24,47,31,59,20,45,0,40,0,34,0,14,10,7,0,0,0,0,0,0,0,0,0,0,18,10,-25,-25,-20,89,0,91,21,14,11,8,10,14,0,26,18,36,0,0,0,0,0,20,24,27,19,145,133,148,0,0,0,0,0,0,0,0,0,0,0,0,0,0,0]} 1. d4 {[%emt 0:00:12]} d6 {[%emt 0:00:25]} 2. Nf3 {[%emt 0:00:19]} g6 {[%emt 0:00:07]} 3. e4 {[%emt 0:00:20]} Bg7 {[%emt 0:00:29]} 4. Be2 {[%emt 0:00:47]} Nf6 {[%emt 0:01:03]} 5. Nc3 {[%emt 0:00:27]} O-O {[%emt 0:00:08]} 6. O-O {[%emt 0:00:47]} Bg4 {[%emt 0:03:26]} 7. Be3 {[%emt 0:08:04]} Nc6 {[%emt 0:00:12]} 8. d5 {[%emt 0:04:56]} Bxf3 {[%emt 0:00:30]} 9. Bxf3 {[%emt 0:00:49]} Ne5 {[%emt 0:00:07]} 10. Be2 {[%emt 0:03:40]} c6 {[%emt 0:00:35]} 11. f4 {[%emt 0:05:53]} Ned7 {[%emt 0:00:10]} 12. Kh1 {[%emt 0:05:42] B08: Pirc Defence: Classical System.} Qa5 {[%emt 0:07:18] [#]} 13. Rb1 $146 {[%emt 0:11:10]} ({Predecessor:} 13. Bf3 Rfc8 14. Bd2 Rab8 15. Qe2 Qc7 16. Rae1 Nb6 17. b3 cxd5 18. exd5 Nfd7 19. Nb5 Qxc2 20. Nxa7 {½-½ (32) Petschar,K (2285)-Schlosser,M (2350) Austria 1987}) 13... Rfc8 {[%emt 0:02:25]} 14. Bg1 {[%emt 0:02:06] White is slightly better.} a6 {[%emt 0:30:04]} 15. Bf3 {[%emt 0:10:06]} Qc7 {[%emt 0:07:12]} 16. Re1 {[%emt 0:07:06]} Re8 {[%emt 0:05:27]} 17. Ne2 {[%emt 0:07:04]} Rad8 {[%emt 0:01:35]} (17... e5 $5 {[%cal Rc6d5]}) 18. g4 {[%emt 0:07:51]} h6 {[%emt 0:10:52]} 19. h4 {[%emt 0:02:03]} e5 {[%emt 0:06:30]} 20. dxe6 {[%emt 0:01:25]} Rxe6 {[%emt 0:00:06]} 21. Nd4 {[%emt 0:00:36]} Re7 {[%emt 0:02:37]} 22. g5 {[%emt 0:00:23]} hxg5 {[%emt 0:02:56]} 23. hxg5 {[%emt 0:00:05]} Nh7 {[%emt 0:00:05][%cal Od6d5]} 24. Qd2 $36 {[%emt 0:01:28][%mdl 2048] White has good play.} Rde8 {[%emt 0:05:19][%cal Od6d5]} 25. Ne2 {[%emt 0:02:43]} f6 {[%emt 0:02:18]} 26. gxf6 {[%emt 0:03:22]} Nhxf6 {[%emt 0:05:46]} 27. Ng3 {[%emt 0:00:29]} (27. Nc3 $5 {[%cal Rb1d1]}) 27... Bh6 $1 {[%emt 0:00:06][%cal Od6d5]} 28. Be3 $1 {[%emt 0:00:31]} Nf8 {[%emt 0:01:21]} (28... d5 $1 $11 {remains equal.} 29. exd5 (29. e5 Nxe5 30. fxe5 Qxe5 $17) 29... Nxd5 30. Bxd5+ cxd5) 29. Rbd1 {[%emt 0:04:53]} (29. Kg2 $1 $16) 29... Qc8 {[%emt 0:01:34] [#]} (29... Ne6 $11) 30. Kg2 {[%emt 0:01:41]} ({White should play} 30. Qg2 $1 $16 {And now Nf5 would win.} Nd5 31. Nh5 (31. exd5 Rxe3 32. Ne4 Rxe1+ 33. Rxe1 Kg7 $14) (31. Nf5 Rh7 $11)) 30... Nxe4 $11 {[%emt 0:00:51]} 31. Nxe4 {[%emt 0:00:33]} Rxe4 {[%emt 0:00:02]} 32. Bxe4 {[%emt 0:01:30]} Rxe4 {[%emt 0:01:06]} 33. Kf3 {[%emt 0:02:51] Against Qg4+} d5 {[%emt 0:01:09] Threatens to win with ...Qh3+.} (33... Qf5 $5 {[%cal Rf8e6]} 34. Qh2 Bg5 $11) 34. Qh2 {[%emt 0:00:07] Against Qh3+} Bg7 {[%emt 0:00:09]} 35. Bc1 {[%emt 0:02:31]} Qf5 {[%emt 0:01:00]} 36. Rxe4 {[%emt 0:00:38] The board is on fire.} Qxe4+ {[%emt 0:00:09]} 37. Kg3 {[%emt 0:00:18]} Ne6 {[%emt 0:00:30][%cal Og6g5]} (37... g5 $5) 38. Qg2 {[%emt 0:00:25] Black must now prevent Qxe4.} Qf5 {[%emt 0:01:49][%cal Og7b2]} 39. Qe2 {[%emt 0:01:03]} g5 {[%emt 0:01:07]} (39... Kf7 $11) 40. Qg4 $16 {[%emt 0:01:15]} Qe4 {[%emt 0:00:56] [#]} 41. fxg5 {[%emt 0:13:37]} (41. Rf1 $1 $16) 41... Be5+ $11 {[%emt 0:01:38] The position is equal.} 42. Kh3 {[%emt 0:00:37]} Bf4 $1 {[%emt 0:01:14] Hoping for ...Nxg5+.} (42... Qh7+ 43. Kg2 Qh2+ 44. Kf1 Qh1+ 45. Kf2 Qh2+ 46. Qg2 Qh4+ 47. Kg1 $16) 43. Rf1 {[%emt 0:14:54]} Qh7+ {[%emt 0:08:42]} 44. Qh4 {[%emt 0:00:09]} Qf5+ {[%emt 0:00:24]} 45. Qg4 {[%emt 0:00:55]} Qh7+ {[%emt 0:01:03]} (45... Nxg5+ $2 46. Kh4 Qh7+ 47. Qh5 Bxc1 48. Qxh7+ (48. Rxc1 Nf3+ 49. Kg4 Nh2+ 50. Kg5 Qe7+ 51. Kf5 Qe4+ 52. Kf6 Ng4+ 53. Kg5 Qe3+ 54. Kxg4 Qxc1 $11) 48... Kxh7 49. Rxc1 $18) 46. Qh4 {[%emt 0:00:00]} Qf5+ {[%emt 0:00:06]} 47. Qg4 {[%emt 0:00:01]} Qh7+ {[%emt 0:00:54]} ({Don't do} 47... Nxg5+ 48. Kh4 Qh7+ 49. Qh5 Bxc1 50. Qxh7+ (50. Rxc1 Nf3+ 51. Kg4 Nh2+ 52. Kg5 Qe7+ 53. Kf5 Qe4+ 54. Kf6 Qf4+ 55. Kg6 Qf7+ 56. Kg5 Qe7+ 57. Kf5 Qf8+ 58. Ke6 Qc8+ 59. Ke5 Qb8+ 60. Kf6 Qf4+ 61. Kg6 Qf7+ 62. Kg5 Qe7+ $11) 50... Kxh7 51. Rxc1 $18) 48. Qh4 {[%emt 0:00:09] Weighted Error Value: White=0.23 (precise) /Black=0.23 (precise)} 1/2-1/2

[Event "55th Biel Festival MTO 2022"]
[Site "Biel"]
[Date "2022.07.19"]
[Round "6.18"]
[White "Herrera Reyes, Jose Antonio"]
[Black "Prraneeth Vuppala"]
[Result "0-1"]
[ECO "C44"]
[WhiteElo "2345"]
[BlackElo "2457"]
[Annotator "TA"]
[PlyCount "70"]
[EventDate "2022.07.13"]
[EventType "swiss"]
[EventCountry "SUI"]
[SourceTitle "playchess.com"]
[Source "ChessBase"]
[SourceQuality "1"]
[TimeControl "40/5400+30:1800+30"]

{[%evp 9,70,-35,-31,-31,-44,-49,-34,-43,-47,-40,-33,-53,10,10,15,20,14,0,25,0,13,-13,-10,-53,-55,-62,0,-50,-58,-155,-169,-154,-187,-166,-105,-153,-162,-147,-58,-103,-139,-132,-258,-429,-425,-577,-577,-782,-770,-789,-790,-732,-702,-1431,-1431,-29976,-29977,-29977,-29978,-29994,-29994,-29994,-29995]} 1. e4 {[%emt 0:01:03]} e5 {[%emt 0:00:38]} 2. Nf3 {[%emt 0:00:12]} Nc6 {[%emt 0:00:08]} 3. c4 {[%emt 0:00:15]} Bc5 {[%emt 0:00:59]} 4. a3 {[%emt 0:01:32]} a5 {[%emt 0:11:38]} 5. d3 {[%emt 0:01:43]} d6 {[%emt 0:00:51]} 6. Be3 {[%emt 0:05:26] C44: Ponziani Opening and Scotch Gambit.} Nge7 {[%emt 0:04:34]} 7. Nc3 {[%emt 0:06:04]} Nd4 {[%emt 0:03:30] [#]} 8. Bxd4 $146 {[%emt 0:07:00] Black is slightly better.} ({Predecessor:} 8. Be2 O-O 9. Nd5 Nec6 10. Nxd4 Bxd4 11. Qd2 f5 12. exf5 Bxf5 13. Bf3 Qd7 14. O-O {0-1 (36) Stoll,M (1976)-Gelfenboim,J (2213) Ditzingen 2005}) 8... exd4 {[%emt 0:00:35]} 9. Ne2 {[%emt 0:00:24]} Nc6 {[%emt 0:01:36]} 10. Ng3 {[%emt 0:02:55]} g5 {[%emt 0:19:24]} (10... Bd7 $15) 11. Ng1 $11 {[%emt 0:30:27]} Ne5 {[%emt 0:05:26][%cal Oh7h5]} 12. Be2 {[%emt 0:04:01]} Be6 {[%emt 0:05:49]} 13. Bh5 {[%emt 0:04:17]} Rg8 {[%emt 0:21:35]} 14. N1e2 {[%emt 0:08:32]} g4 {[%emt 0:04:21]} 15. O-O {[%emt 0:00:31][%cal Ob2b4]} a4 {[%emt 0:03:18]} 16. Kh1 {[%emt 0:06:19]} Qg5 {[%emt 0:08:09][%cal Ob7b5]} 17. Ng1 {[%emt 0:05:07]} Ng6 {[%emt 0:02:17]} (17... Qf4 $15) 18. Bxg6 {[%emt 0:04:10]} (18. f3 $11) 18... hxg6 $15 {[%emt 0:00:28]} 19. f4 {[%emt 0:00:15]} (19. f3 $15) 19... Qh4 $17 {[%emt 0:00:58] White must now prevent ...Rh8.} 20. Re1 {[%emt 0:03:04]} Rh8 {[%emt 0:01:29][%csl Gh8,LRg3,LRh2][%cal Rh4h2]} 21. Nf1 {[%emt 0:00:01]} g3 {[%emt 0:00:31]} ({Black should play} 21... Bd7 $19 22. Ne2 O-O-O) 22. h3 {[%emt 0:00:01]} ({White should try} 22. Ne2) 22... Qxf4 $40 {[%emt 0:00:56][%mdl 128] Black wants a kill.} 23. Qf3 {[%emt 0:03:31] [#]} Qh4 {[%emt 0:02:05] 0x0.001e3bd5e9a5dp-1022s more active pieces.} (23... Qxf3 $1 $17 24. Nxf3 b5 25. cxb5 Rb8 26. Nxg3 Rxb5) 24. e5 {[%emt 0:01:02]} O-O-O {[%emt 0:00:21] Hoping for ...g5.} 25. exd6 {[%emt 0:02:57]} Bxd6 {[%emt 0:00:07]} (25... c6 $17 26. Qxg3 Qh6) 26. Rxe6 {[%emt 0:01:59]} (26. Re4 {was necessary.} Qg5 27. Rxd4) 26... fxe6 $19 {[%emt 0:00:27]} 27. Qd1 {[%emt 0:00:00]} g5 {[%emt 0:01:03]} 28. Qxa4 {[%emt 0:00:18]} g4 {[%emt 0:00:18] And now ...Rdf8 would win.} 29. c5 {[%emt 0:01:04] [#]} gxh3 $1 {[%emt 0:00:37]} 30. Nxh3 {[%emt 0:00:01] [#]} Qf6 $1 {[%emt 0:00:32][%cal Oh8h3]} 31. Qa8+ {[%emt 0:00:54]} (31. Qc2 Bf4) 31... Kd7 {[%emt 0:00:01] ( -> ...Rxh3+)} 32. Qxb7 {[%emt 0:00:02]} Rb8 {[%emt 0:00:36] Black mates.} 33. Qe4 {[%emt 0:01:19] [#]} Rxb2 $1 {[%emt 0:00:09]} 34. cxd6 {[%emt 0:00:23] [#]} (34. c6+ Kd8) 34... Rxh3+ $1 {[%emt 0:00:27][%mdl 512]} 35. gxh3 {[%emt 0:00:02]} Qf2 {[%emt 0:00:52] Weighted Error Value: White=0.64/Black=0.14 (very precise)} 0-1